[Event "Late-Titled-Tuesday-Blitz-September-05-2023"]
[Site "Chess.com"]
[Date "2023.09.05"]
[Round "7"]
[White "Andrei_Skvortsov"]
[Black "Beca95"]
[Result "0-1"]
[WhiteElo "2633"]
[BlackElo "2959"]
[TimeControl "180+1"]
[EndTime "15:18:21 PDT"]
[Termination "Beca95 won by resignation"]

1. e4 {[%clk 0:03:00.9]} 1... e5 {[%clk 0:03:00.1]} 2. Nf3 {[%clk 0:02:57]} 2...
Nc6 {[%clk 0:03:00.1]} 3. Nc3 {[%clk 0:02:55.3]} 3... Nf6 {[%clk 0:02:59.2]} 4.
d4 {[%clk 0:02:54.7]} 4... Bb4 {[%clk 0:02:58.8]} 5. d5 {[%clk 0:02:43.8]} 5...
Ne7 {[%clk 0:02:49.6]} 6. Bd3 {[%clk 0:02:33.3]} 6... Bxc3+ {[%clk 0:02:48.5]}
7. bxc3 {[%clk 0:02:34.2]} 7... d6 {[%clk 0:02:48.5]} 8. h3 {[%clk 0:02:33.1]}
8... Ng6 {[%clk 0:02:49.1]} 9. Bb5+ {[%clk 0:02:28.8]} 9... Bd7 {[%clk 0:02:48]}
10. Bd3 {[%clk 0:02:29.4]} 10... O-O {[%clk 0:02:47.5]} 11. c4 {[%clk
0:02:29.3]} 11... b6 {[%clk 0:02:44.2]} 12. g3 {[%clk 0:02:26]} 12... h6 {[%clk
0:02:43.6]} 13. Be3 {[%clk 0:02:17.7]} 13... c6 {[%clk 0:02:43]} 14. Nd2 {[%clk
0:02:17.5]} 14... Re8 {[%clk 0:02:38.3]} 15. Qe2 {[%clk 0:02:16.5]} 15... Qc8
{[%clk 0:02:28.9]} 16. Qf1 {[%clk 0:02:03.4]} 16... cxd5 {[%clk 0:02:27.4]} 17.
cxd5 {[%clk 0:02:03.1]} 17... Qc3 {[%clk 0:02:27]} 18. Rb1 {[%clk 0:02:03.4]}
18... Ba4 {[%clk 0:02:26.3]} 19. Kd1 {[%clk 0:01:55.7]} 19... Rac8 {[%clk
0:02:20.9]} 20. Nb3 {[%clk 0:01:55.3]} 20... Nxd5 {[%clk 0:01:36.5]} 21. Bd2
{[%clk 0:01:45.8]} 21... Qc7 {[%clk 0:01:34.5]} 22. exd5 {[%clk 0:01:43]} 22...
e4 {[%clk 0:01:34.7]} 23. Ba6 {[%clk 0:01:26.6]} 23... Qxc2+ {[%clk 0:01:33.7]}
24. Ke2 {[%clk 0:01:27.1]} 24... e3 {[%clk 0:01:28.6]} 25. fxe3 {[%clk
0:01:27.7]} 25... Rc3 {[%clk 0:01:28]} 26. Qf2 {[%clk 0:00:50.2]} 26... Qxa2
{[%clk 0:01:10.4]} 27. Nd4 {[%clk 0:00:46.3]} 27... Rexe3+ {[%clk 0:00:29.7]}
28. Qxe3 {[%clk 0:00:44.1]} 28... Rxe3+ {[%clk 0:00:29.3]} 29. Kxe3 {[%clk
0:00:44.7]} 29... Qxd5 {[%clk 0:00:29.2]} 30. Be2 {[%clk 0:00:28.1]} 30... Qe5+
{[%clk 0:00:26.5]} 31. Kd3 {[%clk 0:00:28.6]} 31... Qxg3+ {[%clk 0:00:26.4]} 32.
Be3 {[%clk 0:00:24.3]} 32... Nf4+ {[%clk 0:00:22.4]} 33. Kd2 {[%clk 0:00:24.4]}
33... Nd5 {[%clk 0:00:21.7]} 34. Nf5 {[%clk 0:00:17.1]} 34... Qe5 {[%clk
0:00:20.1]} 35. Bd3 {[%clk 0:00:13.7]} 35... Bd7 {[%clk 0:00:17.5]} 36. Nxh6+
{[%clk 0:00:10.3]} 36... gxh6 {[%clk 0:00:16.6]} 37. Rbe1 {[%clk 0:00:08.8]}
37... Qc3+ {[%clk 0:00:15.8]} 38. Ke2 {[%clk 0:00:08.5]} 38... Nxe3 {[%clk
0:00:15.8]} 39. Kxe3 {[%clk 0:00:09.4]} 39... Bf5 {[%clk 0:00:15.8]} 40. Rhg1+
{[%clk 0:00:09.3]} 40... Kh8 {[%clk 0:00:15.5]} 41. Rd1 {[%clk 0:00:10.2]} 41...
d5 {[%clk 0:00:15.6]} 42. Rg3 {[%clk 0:00:07]} 42... Qe5+ {[%clk 0:00:14.6]} 43.
Kf2 {[%clk 0:00:07.1]} 43... Qd4+ {[%clk 0:00:09.9]} 44. Ke2 {[%clk 0:00:06.3]}
44... Qe5+ {[%clk 0:00:09.8]} 45. Re3 {[%clk 0:00:06.8]} 45... Be4 {[%clk
0:00:10.2]} 46. Bxe4 {[%clk 0:00:06.9]} 46... dxe4 {[%clk 0:00:11.1]} 47. Rd8+
{[%clk 0:00:07.2]} 47... Kh7 {[%clk 0:00:11.3]} 48. Rd7 {[%clk 0:00:07]} 48...
Kg6 {[%clk 0:00:11.6]} 49. Rxa7 {[%clk 0:00:06.8]} 49... f5 {[%clk 0:00:12.3]}
50. Ra6 {[%clk 0:00:06.9]} 50... Qb5+ {[%clk 0:00:12]} 0-1

[Event "Late-Titled-Tuesday-Blitz-September-05-2023"]
[Site "Chess.com"]
[Date "2023.09.05"]
[Round "7"]
[White "Valio_M1948"]
[Black "Ali_rastbod"]
[Result "1-0"]
[WhiteElo "2532"]
[BlackElo "2701"]
[TimeControl "180+1"]
[EndTime "15:18:22 PDT"]
[Termination "Valio_M1948 won by resignation"]

1. d4 {[%clk 0:03:00.9]} 1... g6 {[%clk 0:02:54.4]} 2. e4 {[%clk 0:02:59.8]}
2... Bg7 {[%clk 0:02:53.7]} 3. Nc3 {[%clk 0:03:00.4]} 3... d6 {[%clk 0:02:47.6]}
4. Be3 {[%clk 0:03:00.8]} 4... a6 {[%clk 0:02:47.2]} 5. Qd2 {[%clk 0:03:01]}
5... b5 {[%clk 0:02:47.3]} 6. Nf3 {[%clk 0:02:54.4]} 6... Bb7 {[%clk 0:02:46.4]}
7. Bd3 {[%clk 0:02:52.1]} 7... Nd7 {[%clk 0:02:45.8]} 8. O-O {[%clk 0:02:50.6]}
8... e6 {[%clk 0:02:41.5]} 9. a3 {[%clk 0:02:41]} 9... h6 {[%clk 0:02:39.2]} 10.
h3 {[%clk 0:02:39.2]} 10... Ne7 {[%clk 0:02:39.3]} 11. Rad1 {[%clk 0:02:30.6]}
11... g5 {[%clk 0:02:38.4]} 12. Rfe1 {[%clk 0:02:13]} 12... Nb6 {[%clk
0:02:33.7]} 13. Qe2 {[%clk 0:02:07]} 13... Ng6 {[%clk 0:02:24.4]} 14. e5 {[%clk
0:02:05.8]} 14... d5 {[%clk 0:02:12.7]} 15. Bxg6 {[%clk 0:02:03.8]} 15... fxg6
{[%clk 0:02:13.6]} 16. Qd3 {[%clk 0:01:54.8]} 16... O-O {[%clk 0:01:28.1]} 17.
Qxg6 {[%clk 0:01:52.3]} 17... Qe8 {[%clk 0:01:28.6]} 18. Qxe8 {[%clk 0:01:48.5]}
18... Rfxe8 {[%clk 0:01:27.5]} 19. b3 {[%clk 0:01:46.3]} 19... Bf8 {[%clk
0:01:22.3]} 20. Bc1 {[%clk 0:01:40.9]} 20... Rac8 {[%clk 0:01:18.2]} 21. Na2
{[%clk 0:01:26.8]} 21... a5 {[%clk 0:01:12.5]} 22. Bd2 {[%clk 0:01:19.5]} 22...
a4 {[%clk 0:01:11]} 23. Bb4 {[%clk 0:01:17.6]} 23... c5 {[%clk 0:01:00.6]} 24.
Bxc5 {[%clk 0:01:12.7]} 24... Bxc5 {[%clk 0:01:01.5]} 25. dxc5 {[%clk
0:01:13.6]} 25... Rxc5 {[%clk 0:01:02.4]} 26. Nd4 {[%clk 0:01:09]} 26... axb3
{[%clk 0:00:56.2]} 27. cxb3 {[%clk 0:01:09.9]} 27... Kf7 {[%clk 0:00:55.8]} 28.
b4 {[%clk 0:00:52.8]} 28... Rc6 {[%clk 0:00:48.7]} 29. Nxb5 {[%clk 0:00:43.5]}
29... Ke7 {[%clk 0:00:46.5]} 30. Nd6 {[%clk 0:00:41.9]} 30... Rxd6 {[%clk
0:00:35.3]} 31. exd6+ {[%clk 0:00:42.8]} 31... Kxd6 {[%clk 0:00:36.2]} 32. Nc3
{[%clk 0:00:38.7]} 32... Ke7 {[%clk 0:00:26.5]} 33. a4 {[%clk 0:00:33.5]} 33...
Rc8 {[%clk 0:00:26.3]} 34. a5 {[%clk 0:00:23.2]} 34... Rxc3 {[%clk 0:00:21.6]}
35. axb6 {[%clk 0:00:23.7]} 35... Rc4 {[%clk 0:00:14.2]} 36. Rc1 {[%clk
0:00:22.8]} 36... Kd6 {[%clk 0:00:06.2]} 37. Rxc4 {[%clk 0:00:22.3]} 37... dxc4
{[%clk 0:00:07.1]} 38. Rc1 {[%clk 0:00:21.2]} 38... Kd5 {[%clk 0:00:03.1]} 39.
Kf1 {[%clk 0:00:19.4]} 39... Kd4 {[%clk 0:00:03.5]} 40. f3 {[%clk 0:00:18.9]}
40... c3 {[%clk 0:00:03.3]} 41. Ke2 {[%clk 0:00:18.1]} 41... Ba6+ {[%clk
0:00:03.6]} 42. Kd1 {[%clk 0:00:17.3]} 42... Kd3 {[%clk 0:00:03.5]} 43. b5
{[%clk 0:00:14.6]} 43... Bb7 {[%clk 0:00:02.6]} 44. Ra1 {[%clk 0:00:14.8]} 44...
Kc4 {[%clk 0:00:01.6]} 45. Ra7 {[%clk 0:00:13.9]} 45... Kb3 {[%clk 0:00:01.7]}
46. Rxb7 {[%clk 0:00:12.9]} 46... Kb2 {[%clk 0:00:01.9]} 47. Rc7 {[%clk
0:00:13.5]} 1-0

[Event "Late-Titled-Tuesday-Blitz-September-05-2023"]
[Site "Chess.com"]
[Date "2023.09.05"]
[Round "7"]
[White "Quattroporte300"]
[Black "MikeSailer"]
[Result "1-0"]
[WhiteElo "2393"]
[BlackElo "2182"]
[TimeControl "180+1"]
[EndTime "15:18:23 PDT"]
[Termination "Quattroporte300 won by resignation"]

1. e4 {[%clk 0:03:00.9]} 1... d5 {[%clk 0:03:00.8]} 2. exd5 {[%clk 0:02:59.5]}
2... Qxd5 {[%clk 0:03:01]} 3. Nf3 {[%clk 0:02:58.4]} 3... Bg4 {[%clk 0:03:00.2]}
4. Be2 {[%clk 0:02:57.5]} 4... Nc6 {[%clk 0:02:59.8]} 5. h3 {[%clk 0:02:55.7]}
5... Bh5 {[%clk 0:02:57.8]} 6. O-O {[%clk 0:02:53.6]} 6... O-O-O {[%clk
0:02:56.8]} 7. Nc3 {[%clk 0:02:52.7]} 7... Qd7 {[%clk 0:02:55.6]} 8. d3 {[%clk
0:02:51.6]} 8... Nf6 {[%clk 0:02:55.2]} 9. Be3 {[%clk 0:02:50.9]} 9... e5 {[%clk
0:02:50.5]} 10. a4 {[%clk 0:02:21.6]} 10... Bd6 {[%clk 0:02:37]} 11. Nb5 {[%clk
0:02:19.1]} 11... Kb8 {[%clk 0:02:26.2]} 12. Nxd6 {[%clk 0:02:17.6]} 12... Qxd6
{[%clk 0:02:21.5]} 13. Nd2 {[%clk 0:00:45.3]} 13... Bxe2 {[%clk 0:02:18.1]} 14.
Qxe2 {[%clk 0:00:45]} 14... Rhg8 {[%clk 0:02:11.9]} 15. Ne4 {[%clk 0:00:44.4]}
15... Nxe4 {[%clk 0:02:07.7]} 16. dxe4 {[%clk 0:00:45.3]} 16... Nd4 {[%clk
0:01:55]} 17. Qc4 {[%clk 0:00:43.3]} 17... Qe6 {[%clk 0:01:26.5]} 18. Qxe6
{[%clk 0:00:41.4]} 18... Nxe6 {[%clk 0:01:24.9]} 19. c3 {[%clk 0:00:39.8]} 19...
Nf4 {[%clk 0:01:16.1]} 20. Rfd1 {[%clk 0:00:38.4]} 20... b6 {[%clk 0:00:57.4]}
21. g3 {[%clk 0:00:37.8]} 21... Ne6 {[%clk 0:00:40.7]} 22. f4 {[%clk 0:00:37.4]}
22... exf4 {[%clk 0:00:39.8]} 23. gxf4 {[%clk 0:00:37.1]} 23... h6 {[%clk
0:00:36]} 24. Kf2 {[%clk 0:00:36.5]} 24... Kc8 {[%clk 0:00:35]} 25. a5 {[%clk
0:00:34.8]} 25... Rxd1 {[%clk 0:00:34.3]} 26. Rxd1 {[%clk 0:00:34.5]} 26... Rd8
{[%clk 0:00:32.2]} 27. Rxd8+ {[%clk 0:00:19.9]} 27... Kxd8 {[%clk 0:00:32.2]}
28. h4 {[%clk 0:00:20.5]} 28... Kd7 {[%clk 0:00:24.4]} 29. f5 {[%clk 0:00:19.8]}
29... Nd8 {[%clk 0:00:16.4]} 30. Bd4 {[%clk 0:00:19.4]} 30... g6 {[%clk
0:00:14.3]} 31. Kf3 {[%clk 0:00:17]} 31... c5 {[%clk 0:00:13.4]} 32. Be3 {[%clk
0:00:16.7]} 32... Kc6 {[%clk 0:00:12.6]} 33. Bxh6 {[%clk 0:00:16.4]} 33... bxa5
{[%clk 0:00:12.7]} 34. Kf4 {[%clk 0:00:13]} 34... Kb5 {[%clk 0:00:12.4]} 35. Bf8
{[%clk 0:00:12]} 35... Kc4 {[%clk 0:00:08.1]} 36. Kg5 {[%clk 0:00:11.3]} 36...
a4 {[%clk 0:00:06.6]} 37. fxg6 {[%clk 0:00:10.3]} 37... fxg6 {[%clk 0:00:07.4]}
38. Kxg6 {[%clk 0:00:10.8]} 38... Nb7 {[%clk 0:00:06.9]} 39. h5 {[%clk
0:00:10.5]} 39... Kb3 {[%clk 0:00:07.8]} 40. h6 {[%clk 0:00:10]} 40... Kxb2
{[%clk 0:00:08.7]} 41. h7 {[%clk 0:00:09.8]} 41... a3 {[%clk 0:00:09.6]} 42.
h8=Q {[%clk 0:00:10]} 42... a2 {[%clk 0:00:10.5]} 43. c4+ {[%clk 0:00:10.2]}
43... Kb1 {[%clk 0:00:10]} 44. Bg7 {[%clk 0:00:10.8]} 44... Nd6 {[%clk
0:00:08.4]} 45. Qh1+ {[%clk 0:00:10.7]} 45... Kc2 {[%clk 0:00:08.8]} 46. Qg2+
{[%clk 0:00:10.8]} 1-0

[Event "Late-Titled-Tuesday-Blitz-September-05-2023"]
[Site "Chess.com"]
[Date "2023.09.05"]
[Round "7"]
[White "geordie_derraugh"]
[Black "Alexei_Gubajdullin"]
[Result "1-0"]
[WhiteElo "2504"]
[BlackElo "2592"]
[TimeControl "180+1"]
[EndTime "15:18:27 PDT"]
[Termination "geordie_derraugh won by checkmate"]

1. e4 {[%clk 0:03:00.9]} 1... g6 {[%clk 0:02:59.3]} 2. d4 {[%clk 0:02:59.7]}
2... d6 {[%clk 0:02:59.6]} 3. Nc3 {[%clk 0:02:58.1]} 3... a6 {[%clk 0:03:00]} 4.
Nf3 {[%clk 0:02:57.8]} 4... Bg7 {[%clk 0:02:59.1]} 5. a4 {[%clk 0:02:57.3]} 5...
b6 {[%clk 0:02:58]} 6. h3 {[%clk 0:02:57.3]} 6... Nf6 {[%clk 0:02:57.8]} 7. Bd3
{[%clk 0:02:57.2]} 7... Bb7 {[%clk 0:02:57.7]} 8. O-O {[%clk 0:02:57.1]} 8...
O-O {[%clk 0:02:57.3]} 9. Re1 {[%clk 0:02:51.9]} 9... e6 {[%clk 0:02:56.7]} 10.
Bg5 {[%clk 0:02:51.2]} 10... h6 {[%clk 0:02:56.6]} 11. Bh4 {[%clk 0:02:50.8]}
11... Qd7 {[%clk 0:02:44.2]} 12. e5 {[%clk 0:02:45.3]} 12... Nd5 {[%clk
0:02:43.9]} 13. Nxd5 {[%clk 0:02:43.1]} 13... Bxd5 {[%clk 0:02:43.3]} 14. Bf6
{[%clk 0:02:42.7]} 14... Nc6 {[%clk 0:02:41.5]} 15. Bxg7 {[%clk 0:01:28]} 15...
Kxg7 {[%clk 0:02:41.1]} 16. exd6 {[%clk 0:01:27.1]} 16... cxd6 {[%clk
0:02:39.4]} 17. c3 {[%clk 0:01:25.5]} 17... Bxf3 {[%clk 0:02:27.3]} 18. Qxf3
{[%clk 0:01:25.5]} 18... d5 {[%clk 0:02:27.5]} 19. Qe2 {[%clk 0:01:24.7]} 19...
Qd6 {[%clk 0:02:27.1]} 20. Bxa6 {[%clk 0:01:22.8]} 20... h5 {[%clk 0:02:19.8]}
21. Bd3 {[%clk 0:01:21.8]} 21... Ra7 {[%clk 0:02:18.6]} 22. Bc2 {[%clk
0:01:13.1]} 22... Na5 {[%clk 0:02:16.3]} 23. Qb5 {[%clk 0:01:09.1]} 23... Rb8
{[%clk 0:02:09.7]} 24. Bd3 {[%clk 0:01:04.8]} 24... h4 {[%clk 0:02:07.2]} 25.
Bf1 {[%clk 0:00:40.2]} 25... g5 {[%clk 0:01:59.1]} 26. Qe2 {[%clk 0:00:36.5]}
26... Rba8 {[%clk 0:01:41.6]} 27. Qg4 {[%clk 0:00:34.5]} 27... Qf4 {[%clk
0:01:41.2]} 28. Qxf4 {[%clk 0:00:29.1]} 28... gxf4 {[%clk 0:01:41.2]} 29. Bb5
{[%clk 0:00:29]} 29... Nb3 {[%clk 0:01:37.2]} 30. Rad1 {[%clk 0:00:24.2]} 30...
Kf6 {[%clk 0:01:33.6]} 31. Re5 {[%clk 0:00:23.7]} 31... Rg8 {[%clk 0:01:29.7]}
32. Kf1 {[%clk 0:00:24]} 32... f3 {[%clk 0:01:28.3]} 33. gxf3 {[%clk 0:00:21.9]}
33... Raa8 {[%clk 0:01:26.3]} 34. Rh5 {[%clk 0:00:19.1]} 34... Rh8 {[%clk
0:01:24.9]} 35. Rxh8 {[%clk 0:00:17.7]} 35... Rxh8 {[%clk 0:01:24.7]} 36. Kg2
{[%clk 0:00:18.1]} 36... Kf5 {[%clk 0:01:22.2]} 37. Re1 {[%clk 0:00:15]} 37...
Kf4 {[%clk 0:01:22.1]} 38. Re3 {[%clk 0:00:13.8]} 38... Nd2 {[%clk 0:01:18]} 39.
Be2 {[%clk 0:00:12.7]} 39... Ra8 {[%clk 0:01:16.5]} 40. Bd1 {[%clk 0:00:11.3]}
40... Rg8+ {[%clk 0:01:12.9]} 41. Kh1 {[%clk 0:00:11.3]} 41... Nc4 {[%clk
0:00:54.6]} 42. Re2 {[%clk 0:00:11.5]} 42... Kxf3 {[%clk 0:00:51.7]} 43. b3
{[%clk 0:00:09.4]} 43... Na5 {[%clk 0:00:46.8]} 44. Rxe6+ {[%clk 0:00:09.5]}
44... Kxf2 {[%clk 0:00:46.8]} 45. Rf6+ {[%clk 0:00:07.9]} 45... Ke1 {[%clk
0:00:46.9]} 46. Bg4 {[%clk 0:00:08.1]} 46... Nxb3 {[%clk 0:00:44.7]} 47. Rxb6
{[%clk 0:00:08.1]} 47... Nd2 {[%clk 0:00:42.9]} 48. Rf6 {[%clk 0:00:05.8]} 48...
Rb8 {[%clk 0:00:37.6]} 49. Rxf7 {[%clk 0:00:05.1]} 49... Rb1 {[%clk 0:00:37.4]}
50. Kg2 {[%clk 0:00:05.1]} 50... Nc4 {[%clk 0:00:36.2]} 51. Rf1+ {[%clk
0:00:03.7]} 51... Kd2 {[%clk 0:00:33.6]} 52. Rxb1 {[%clk 0:00:04.3]} 52... Ne3+
{[%clk 0:00:33.9]} 53. Kf3 {[%clk 0:00:04.8]} 53... Nc4 {[%clk 0:00:33.9]} 54.
Rb5 {[%clk 0:00:04.8]} 54... Kxc3 {[%clk 0:00:33.7]} 55. Rxd5 {[%clk 0:00:04.9]}
55... Nd2+ {[%clk 0:00:34.1]} 56. Kf4 {[%clk 0:00:04.9]} 56... Kc4 {[%clk
0:00:35]} 57. Rd8 {[%clk 0:00:05.1]} 57... Nf1 {[%clk 0:00:34.2]} 58. d5 {[%clk
0:00:04.1]} 58... Ng3 {[%clk 0:00:33.7]} 59. d6 {[%clk 0:00:04.2]} 59... Kc5
{[%clk 0:00:33.6]} 60. d7 {[%clk 0:00:04.4]} 60... Kc6 {[%clk 0:00:34.1]} 61.
Rc8+ {[%clk 0:00:04.7]} 61... Kd6 {[%clk 0:00:33.9]} 62. d8=Q# {[%clk
0:00:04.6]} 1-0

[Event "Late-Titled-Tuesday-Blitz-September-05-2023"]
[Site "Chess.com"]
[Date "2023.09.05"]
[Round "7"]
[White "Rinqed222"]
[Black "FeketeBarika"]
[Result "1-0"]
[WhiteElo "2254"]
[BlackElo "2392"]
[TimeControl "180+1"]
[EndTime "15:18:28 PDT"]
[Termination "Rinqed222 won on time"]

1. e4 {[%clk 0:03:00.9]} 1... e6 {[%clk 0:02:46.1]} 2. d4 {[%clk 0:03:00.6]}
2... d5 {[%clk 0:02:47]} 3. e5 {[%clk 0:03:01]} 3... c5 {[%clk 0:02:40.4]} 4. c3
{[%clk 0:03:01.5]} 4... Nc6 {[%clk 0:02:40.8]} 5. Nf3 {[%clk 0:03:01.7]} 5...
Bd7 {[%clk 0:02:41.4]} 6. Be2 {[%clk 0:03:01.3]} 6... cxd4 {[%clk 0:02:42.1]} 7.
cxd4 {[%clk 0:03:01.1]} 7... Nh6 {[%clk 0:02:43]} 8. Bxh6 {[%clk 0:02:43.1]}
8... gxh6 {[%clk 0:02:42.2]} 9. Nc3 {[%clk 0:02:39.8]} 9... Bg7 {[%clk
0:02:41.8]} 10. Qd2 {[%clk 0:02:39.9]} 10... O-O {[%clk 0:02:41.9]} 11. O-O
{[%clk 0:02:20.8]} 11... f6 {[%clk 0:02:37.5]} 12. exf6 {[%clk 0:02:19.9]} 12...
Qxf6 {[%clk 0:02:38.4]} 13. Bb5 {[%clk 0:02:13.4]} 13... Nb8 {[%clk 0:02:35.7]}
14. Ne5 {[%clk 0:02:07.7]} 14... Bxb5 {[%clk 0:02:22.1]} 15. Nxb5 {[%clk
0:02:08.6]} 15... a6 {[%clk 0:02:12.1]} 16. Nd6 {[%clk 0:02:01.6]} 16... Qe7
{[%clk 0:02:03.7]} 17. Qb4 {[%clk 0:01:50.9]} 17... b5 {[%clk 0:01:34.9]} 18.
Qc5 {[%clk 0:01:12.9]} 18... Rd8 {[%clk 0:01:18.3]} 19. Ne4 {[%clk 0:00:53.7]}
19... Qh4 {[%clk 0:01:05.6]} 20. Ng3 {[%clk 0:00:41.6]} 20... Nd7 {[%clk
0:00:58]} 21. Nxd7 {[%clk 0:00:37.8]} 21... Rxd7 {[%clk 0:00:58.9]} 22. Qc6
{[%clk 0:00:34]} 22... Rad8 {[%clk 0:00:49]} 23. Qxe6+ {[%clk 0:00:33.8]} 23...
Rf7 {[%clk 0:00:49.7]} 24. Nf5 {[%clk 0:00:31.6]} 24... Qf6 {[%clk 0:00:49.1]}
25. Nxg7 {[%clk 0:00:27.2]} 25... Qxg7 {[%clk 0:00:49.1]} 26. Rad1 {[%clk
0:00:23.2]} 26... Qh8 {[%clk 0:00:48.4]} 27. Qxh6 {[%clk 0:00:22]} 27... Rdf8
{[%clk 0:00:39.2]} 28. Qxa6 {[%clk 0:00:20.7]} 28... Qg7 {[%clk 0:00:35.9]} 29.
Qxb5 {[%clk 0:00:20.4]} 29... Kh8 {[%clk 0:00:36]} 30. Qxd5 {[%clk 0:00:20.1]}
30... Rf5 {[%clk 0:00:36.2]} 31. Qe4 {[%clk 0:00:19.7]} 31... Rg8 {[%clk
0:00:31.9]} 32. g3 {[%clk 0:00:18.2]} 32... Rh5 {[%clk 0:00:29.7]} 33. d5 {[%clk
0:00:17]} 33... Qh6 {[%clk 0:00:25.9]} 34. Qg2 {[%clk 0:00:16.5]} 34... Qd6
{[%clk 0:00:23]} 35. Rfe1 {[%clk 0:00:16.2]} 35... Rf8 {[%clk 0:00:19.5]} 36.
Re6 {[%clk 0:00:16.1]} 36... Qc5 {[%clk 0:00:18.7]} 37. d6 {[%clk 0:00:13.7]}
37... Qc2 {[%clk 0:00:17.8]} 38. Rf1 {[%clk 0:00:13.4]} 38... Qf5 {[%clk
0:00:16.9]} 39. Qe4 {[%clk 0:00:12]} 39... Qf7 {[%clk 0:00:14.2]} 40. Qd4+
{[%clk 0:00:11.6]} 40... Kg8 {[%clk 0:00:12.8]} 41. Rfe1 {[%clk 0:00:10.5]}
41... Rf5 {[%clk 0:00:07.9]} 42. f4 {[%clk 0:00:10.1]} 42... Qh5 {[%clk
0:00:03.1]} 43. Re7 {[%clk 0:00:08.1]} 43... R5f7 {[%clk 0:00:03.2]} 44. d7
{[%clk 0:00:07.5]} 44... Rxe7 {[%clk 0:00:02.7]} 45. Rxe7 {[%clk 0:00:07.3]}
45... Qg6 {[%clk 0:00:02.4]} 46. d8=Q {[%clk 0:00:06]} 46... Qb1+ {[%clk
0:00:01.9]} 47. Kg2 {[%clk 0:00:06.2]} 47... Qc2+ {[%clk 0:00:01.5]} 48. Qd2
{[%clk 0:00:04.6]} 48... Qc6+ {[%clk 0:00:01.5]} 49. Q8d5+ {[%clk 0:00:04.4]}
1-0

[Event "Late-Titled-Tuesday-Blitz-September-05-2023"]
[Site "Chess.com"]
[Date "2023.09.05"]
[Round "7"]
[White "Chessdreamer2020"]
[Black "Athanasios2"]
[Result "1-0"]
[WhiteElo "2525"]
[BlackElo "2699"]
[TimeControl "180+1"]
[EndTime "15:18:30 PDT"]
[Termination "Chessdreamer2020 won on time"]

1. e4 {[%clk 0:03:00.6]} 1... c5 {[%clk 0:03:00.6]} 2. Nf3 {[%clk 0:03:00.7]}
2... d6 {[%clk 0:03:01.1]} 3. d4 {[%clk 0:03:01]} 3... cxd4 {[%clk 0:03:02]} 4.
Qxd4 {[%clk 0:03:01.6]} 4... Nc6 {[%clk 0:03:01.9]} 5. Qe3 {[%clk 0:03:01.6]}
5... Nf6 {[%clk 0:03:02.5]} 6. h3 {[%clk 0:03:01.4]} 6... g6 {[%clk 0:03:01]} 7.
Be2 {[%clk 0:03:01.3]} 7... Bg7 {[%clk 0:03:01.2]} 8. O-O {[%clk 0:03:01.8]}
8... O-O {[%clk 0:03:01.9]} 9. Rd1 {[%clk 0:03:02.3]} 9... Qc7 {[%clk
0:03:00.9]} 10. c4 {[%clk 0:03:02.3]} 10... b6 {[%clk 0:02:55]} 11. Nc3 {[%clk
0:03:02.3]} 11... Bb7 {[%clk 0:02:55.7]} 12. Rb1 {[%clk 0:03:02.8]} 12... Rac8
{[%clk 0:02:54.6]} 13. b3 {[%clk 0:03:03.1]} 13... Rfd8 {[%clk 0:02:53.3]} 14.
Bb2 {[%clk 0:03:03.5]} 14... e6 {[%clk 0:02:53.4]} 15. Rbc1 {[%clk 0:03:04]}
15... Qe7 {[%clk 0:02:51.4]} 16. Ba3 {[%clk 0:03:02.8]} 16... Ne8 {[%clk
0:02:46.9]} 17. Bf1 {[%clk 0:02:54.4]} 17... Ne5 {[%clk 0:02:42.3]} 18. Nxe5
{[%clk 0:02:45.8]} 18... Bxe5 {[%clk 0:02:43.2]} 19. f4 {[%clk 0:02:45.6]} 19...
Bg7 {[%clk 0:02:39.6]} 20. e5 {[%clk 0:02:43.2]} 20... Qh4 {[%clk 0:02:17.8]}
21. exd6 {[%clk 0:02:29]} 21... Rd7 {[%clk 0:02:17.5]} 22. c5 {[%clk 0:02:03.4]}
22... bxc5 {[%clk 0:02:12.2]} 23. Bxc5 {[%clk 0:02:04.3]} 23... Qh5 {[%clk
0:01:41.4]} 24. b4 {[%clk 0:01:56.9]} 24... a6 {[%clk 0:01:35.4]} 25. Na4 {[%clk
0:01:49.9]} 25... Rc6 {[%clk 0:01:01.3]} 26. b5 {[%clk 0:01:43.2]} 26... axb5
{[%clk 0:00:45.5]} 27. Bxb5 {[%clk 0:01:44.1]} 27... Rcxd6 {[%clk 0:00:45.8]}
28. Rxd6 {[%clk 0:01:23.4]} 28... Rxd6 {[%clk 0:00:37.4]} 29. Bxe8 {[%clk
0:01:21.9]} 29... Rd8 {[%clk 0:00:34.8]} 30. Bb5 {[%clk 0:01:18.6]} 30... Qd5
{[%clk 0:00:31.2]} 31. Bf1 {[%clk 0:01:17.5]} 31... Qxa2 {[%clk 0:00:29.8]} 32.
Nc3 {[%clk 0:01:12.9]} 32... Qa8 {[%clk 0:00:21.2]} 33. Rd1 {[%clk 0:01:04.3]}
33... Rc8 {[%clk 0:00:20.8]} 34. Nb5 {[%clk 0:01:03.6]} 34... Bd5 {[%clk
0:00:18.3]} 35. Bd4 {[%clk 0:01:00]} 35... Bxd4 {[%clk 0:00:17.7]} 36. Nxd4
{[%clk 0:01:00.9]} 36... Qa7 {[%clk 0:00:16.1]} 37. Nf5 {[%clk 0:00:52.9]} 37...
Qc7 {[%clk 0:00:08.2]} 38. Nh6+ {[%clk 0:00:50.4]} 38... Kg7 {[%clk 0:00:08.3]}
39. Ng4 {[%clk 0:00:50.8]} 39... Qc5 {[%clk 0:00:04.6]} 40. Qxc5 {[%clk
0:00:49.2]} 40... Rxc5 {[%clk 0:00:05.5]} 41. Ne3 {[%clk 0:00:47.9]} 41... Be4
{[%clk 0:00:06.1]} 42. Rd4 {[%clk 0:00:47.1]} 42... Bc6 {[%clk 0:00:05.3]} 43.
Rc4 {[%clk 0:00:47.3]} 43... Rxc4 {[%clk 0:00:05.6]} 44. Nxc4 {[%clk 0:00:48.2]}
44... Kf6 {[%clk 0:00:04.9]} 45. Kf2 {[%clk 0:00:48]} 45... Kf5 {[%clk
0:00:02.7]} 46. Ke3 {[%clk 0:00:46.4]} 46... Kf6 {[%clk 0:00:02.5]} 47. Ne5
{[%clk 0:00:45.9]} 47... Bd5 {[%clk 0:00:03.1]} 48. g4 {[%clk 0:00:46]} 48... g5
{[%clk 0:00:02.7]} 49. Nd7+ {[%clk 0:00:41.3]} 49... Ke7 {[%clk 0:00:02.5]} 50.
Nb6 {[%clk 0:00:40.7]} 50... gxf4+ {[%clk 0:00:02.8]} 51. Kxf4 {[%clk
0:00:41.6]} 51... Bc6 {[%clk 0:00:02.3]} 52. Kg5 {[%clk 0:00:41.9]} 52... Be4
{[%clk 0:00:02.3]} 53. Nc4 {[%clk 0:00:39.9]} 53... f6+ {[%clk 0:00:01]} 54. Kh6
{[%clk 0:00:40]} 54... Bb1 {[%clk 0:00:00.9]} 55. Bg2 {[%clk 0:00:35.5]} 55...
Kf7 {[%clk 0:00:00.6]} 56. Be4 {[%clk 0:00:34.7]} 1-0